[Event "*** Titled Tuesday Blitz"]
[Site "Chess.com"]
[Date "2019.01.01"]
[Round "1"]
[White "VerdeNotte"]
[Black "MasterKroket"]
[Result "1-0"]
[WhiteElo "2849"]
[BlackElo "2448"]
[TimeControl "180+2"]
[EndTime "13:06:34 PST"]
[Termination "VerdeNotte won by resignation"]

1. g3 {[%clk 0:02:57.1]} 1... Nf6 {[%clk 0:02:57.8]} 2. Bg2 {[%clk 0:02:58.1]}
2... d5 {[%clk 0:02:57.9]} 3. b3 {[%clk 0:02:58.2]} 3... c5 {[%clk 0:02:55.6]}
4. Bb2 {[%clk 0:02:59.5]} 4... Nc6 {[%clk 0:02:57.1]} 5. Nf3 {[%clk 0:03:00]}
5... g6 {[%clk 0:02:52.8]} 6. d4 {[%clk 0:02:56.6]} 6... cxd4 {[%clk 0:02:47.2]}
7. Nxd4 {[%clk 0:02:57.6]} 7... Bg7 {[%clk 0:02:47.8]} 8. O-O {[%clk 0:02:56.5]}
8... O-O {[%clk 0:02:46.9]} 9. c4 {[%clk 0:02:57.5]} 9... e6 {[%clk 0:02:05]}
10. cxd5 {[%clk 0:02:49.2]} 10... Nxd5 {[%clk 0:02:01.5]} 11. Nxc6 {[%clk
0:02:49.3]} 11... bxc6 {[%clk 0:02:00.7]} 12. Bxg7 {[%clk 0:02:51.2]} 12... Kxg7
{[%clk 0:02:01.4]} 13. Qc2 {[%clk 0:02:48.4]} 13... Ba6 {[%clk 0:01:52.3]} 14.
Nc3 {[%clk 0:02:44.3]} 14... Qf6 {[%clk 0:01:39.9]} 15. Rfc1 {[%clk 0:02:35.7]}
15... Nxc3 {[%clk 0:01:36.3]} 16. Qxc3 {[%clk 0:02:36.7]} 16... Qxc3 {[%clk
0:01:30.9]} 17. Rxc3 {[%clk 0:02:38.6]} 17... Bxe2 {[%clk 0:01:32.1]} 18. Re1
{[%clk 0:02:33.3]} 18... Ba6 {[%clk 0:01:11]} 19. Rxc6 {[%clk 0:02:34]} 19...
Bb7 {[%clk 0:01:09.1]} 20. Rc7 {[%clk 0:02:35.1]} 20... Bxg2 {[%clk 0:01:10]}
21. Kxg2 {[%clk 0:02:37]} 21... Kf6 {[%clk 0:00:59.1]} 22. Re4 {[%clk
0:02:34.1]} 22... g5 {[%clk 0:00:51.6]} 23. Ra4 {[%clk 0:02:34.5]} 23... Rfc8
{[%clk 0:00:38.5]} 24. Rxc8 {[%clk 0:02:28.6]} 24... Rxc8 {[%clk 0:00:39.5]} 25.
Rxa7 {[%clk 0:02:30.5]} 25... Rc2 {[%clk 0:00:41.1]} 26. a4 {[%clk 0:02:30.6]}
26... Rb2 {[%clk 0:00:42.6]} 27. Rb7 {[%clk 0:02:31.5]} 27... Ra2 {[%clk
0:00:42.7]} 28. Rb5 {[%clk 0:02:30.2]} 28... e5 {[%clk 0:00:36.2]} 29. a5 {[%clk
0:02:31]} 29... e4 {[%clk 0:00:37.4]} 30. Kf1 {[%clk 0:02:29.1]} 30... Kg6
{[%clk 0:00:22]} 31. g4 {[%clk 0:02:27.1]} 31... h5 {[%clk 0:00:20.5]} 32. h3
{[%clk 0:02:27.2]} 32... hxg4 {[%clk 0:00:21.6]} 33. hxg4 {[%clk 0:02:28.4]}
33... f6 {[%clk 0:00:19.6]} 34. b4 {[%clk 0:02:26.9]} 34... Kf7 {[%clk
0:00:18.8]} 35. Rb6 {[%clk 0:02:27.9]} 35... Ke7 {[%clk 0:00:16.1]} 36. a6
{[%clk 0:02:28.9]} 36... Kd7 {[%clk 0:00:07.2]} 37. b5 {[%clk 0:02:28.6]} 37...
Ra5 {[%clk 0:00:06.6]} 38. Rxf6 {[%clk 0:02:25.9]} 38... Rxb5 {[%clk 0:00:06.6]}
39. a7 {[%clk 0:02:27]} 39... Ra5 {[%clk 0:00:06]} 40. Rf8 {[%clk 0:02:28]} 1-0

[Event "*** Titled Tuesday Blitz"]
[Site "Chess.com"]
[Date "2019.01.01"]
[Round "1"]
[White "albi1999"]
[Black "Hikaru"]
[Result "0-1"]
[WhiteElo "2468"]
[BlackElo "3049"]
[TimeControl "180+2"]
[EndTime "13:06:40 PST"]
[Termination "Hikaru won by resignation"]

1. d4 {[%clk 0:03:00.3]} 1... g6 {[%clk 0:02:59.5]} 2. c4 {[%clk 0:03:01.4]}
2... Bg7 {[%clk 0:02:59.7]} 3. Nf3 {[%clk 0:03:03]} 3... c5 {[%clk 0:02:58.3]}
4. d5 {[%clk 0:03:00.7]} 4... b5 {[%clk 0:02:59.7]} 5. cxb5 {[%clk 0:03:01.5]}
5... a6 {[%clk 0:02:58.3]} 6. bxa6 {[%clk 0:03:03.4]} 6... Nf6 {[%clk
0:02:57.8]} 7. Nc3 {[%clk 0:03:04.6]} 7... Bxa6 {[%clk 0:02:57.7]} 8. e4 {[%clk
0:03:05.5]} 8... Bxf1 {[%clk 0:02:58.5]} 9. Kxf1 {[%clk 0:03:07.4]} 9... d6
{[%clk 0:03:00.3]} 10. g3 {[%clk 0:03:06.7]} 10... O-O {[%clk 0:03:01.3]} 11.
Kg2 {[%clk 0:03:08.2]} 11... Nbd7 {[%clk 0:03:03]} 12. a4 {[%clk 0:03:09.6]}
12... c4 {[%clk 0:03:04.1]} 13. Qe2 {[%clk 0:03:08]} 13... Qc7 {[%clk
0:03:05.1]} 14. Be3 {[%clk 0:03:04.4]} 14... Ng4 {[%clk 0:02:58.4]} 15. Bd4
{[%clk 0:03:01.7]} 15... Rfb8 {[%clk 0:02:50.5]} 16. Nb5 {[%clk 0:02:58.6]}
16... Qb7 {[%clk 0:02:41.8]} 17. Bxg7 {[%clk 0:02:56.4]} 17... Kxg7 {[%clk
0:02:43.7]} 18. Qxc4 {[%clk 0:02:55.9]} 18... Rc8 {[%clk 0:02:42.8]} 19. Qd4+
{[%clk 0:02:56.3]} 19... Ngf6 {[%clk 0:02:42.7]} 20. Rhc1 {[%clk 0:02:43.1]}
20... Nc5 {[%clk 0:02:43.7]} 21. Nd2 {[%clk 0:02:37.9]} 21... Kg8 {[%clk
0:02:38.7]} 22. b3 {[%clk 0:02:35.1]} 22... Nfxe4 {[%clk 0:02:35.6]} 23. Nxe4
{[%clk 0:02:00.5]} 23... Nxb3 {[%clk 0:02:36.8]} 24. Rxc8+ {[%clk 0:02:01]}
24... Qxc8 {[%clk 0:02:35.7]} 25. Nbxd6 {[%clk 0:01:28.7]} 25... Qf8 {[%clk
0:02:12.2]} 26. Qc3 {[%clk 0:01:06.8]} 26... Nxa1 {[%clk 0:02:12.7]} 27. Qxa1
{[%clk 0:01:08.7]} 27... f5 {[%clk 0:02:12.5]} 28. Ng5 {[%clk 0:00:49]} 28...
exd6 {[%clk 0:02:12.9]} 29. Ne6 {[%clk 0:00:50.6]} 29... Qe7 {[%clk 0:02:11.6]}
30. a5 {[%clk 0:00:51.8]} 30... Qb7 {[%clk 0:02:11.2]} 31. Nf4 {[%clk
0:00:36.7]} 31... g5 {[%clk 0:02:06.1]} 32. Nh5 {[%clk 0:00:37]} 32... Qxd5+
{[%clk 0:02:07.1]} 33. Kg1 {[%clk 0:00:37.6]} 33... Qf7 {[%clk 0:02:06.5]} 34.
Nf6+ {[%clk 0:00:34.6]} 34... Kg7 {[%clk 0:02:07.2]} 35. Ne4+ {[%clk 0:00:27]}
35... Kg6 {[%clk 0:02:07.6]} 36. Nxd6 {[%clk 0:00:27.6]} 36... Qe6 {[%clk
0:02:08.1]} 37. Nb5 {[%clk 0:00:25.1]} 37... Qd5 {[%clk 0:02:01.1]} 38. Nc7
{[%clk 0:00:25]} 38... Rxa5 {[%clk 0:02:01.9]} 39. Qe1 {[%clk 0:00:19.2]} 39...
Qe5 {[%clk 0:02:01.6]} 40. Qc1 {[%clk 0:00:17.5]} 40... Ra1 {[%clk 0:02:02.1]}
0-1

[Event "*** Titled Tuesday Blitz"]
[Site "Chess.com"]
[Date "2019.01.01"]
[Round "1"]
[White "novocane"]
[Black "IMAghasiyevKamal"]
[Result "0-1"]
[WhiteElo "2136"]
[BlackElo "2538"]
[TimeControl "180+2"]
[EndTime "13:06:43 PST"]
[Termination "IMAghasiyevKamal won by checkmate"]

1. d4 {[%clk 0:03:01.9]} 1... d5 {[%clk 0:02:57.2]} 2. c4 {[%clk 0:03:02.9]}
2... e6 {[%clk 0:02:57.3]} 3. Nc3 {[%clk 0:03:04]} 3... Nf6 {[%clk 0:02:58.3]}
4. cxd5 {[%clk 0:03:05]} 4... exd5 {[%clk 0:02:58.9]} 5. Bg5 {[%clk 0:03:05.8]}
5... Be7 {[%clk 0:02:58.8]} 6. Qc2 {[%clk 0:03:06.7]} 6... c6 {[%clk 0:02:57.1]}
7. e3 {[%clk 0:03:06.7]} 7... Nbd7 {[%clk 0:02:57.8]} 8. Bd3 {[%clk 0:03:06.5]}
8... Nh5 {[%clk 0:02:58.2]} 9. Bxe7 {[%clk 0:03:02.4]} 9... Qxe7 {[%clk
0:02:59.2]} 10. Nf3 {[%clk 0:03:03.3]} 10... Nf4 {[%clk 0:02:57.6]} 11. Bf1
{[%clk 0:03:04.1]} 11... O-O {[%clk 0:02:55.4]} 12. O-O-O {[%clk 0:03:04.2]}
12... Ne6 {[%clk 0:02:47.2]} 13. Bd3 {[%clk 0:02:59.8]} 13... h6 {[%clk
0:02:44.2]} 14. g4 {[%clk 0:02:56.9]} 14... Qf6 {[%clk 0:02:43.8]} 15. Qe2
{[%clk 0:02:32.3]} 15... Re8 {[%clk 0:02:43]} 16. h4 {[%clk 0:02:28.7]} 16...
Nf4 {[%clk 0:02:43.4]} 17. Qf1 {[%clk 0:01:18.7]} 17... Nxd3+ {[%clk 0:02:42.5]}
18. Rxd3 {[%clk 0:01:20.6]} 18... Qxf3 {[%clk 0:02:43.3]} 19. Rh3 {[%clk
0:01:19.4]} 19... Qxg4 {[%clk 0:02:41.8]} 20. Rg3 {[%clk 0:01:11.1]} 20... Qxh4
{[%clk 0:02:38.6]} 21. Qg2 {[%clk 0:01:09.5]} 21... Qf6 {[%clk 0:02:38.4]} 22.
Ne2 {[%clk 0:01:05.6]} 22... Nf8 {[%clk 0:02:29.7]} 23. Nf4 {[%clk 0:01:05.4]}
23... g6 {[%clk 0:02:21.6]} 24. Rd1 {[%clk 0:00:58.8]} 24... Bf5 {[%clk
0:02:18.4]} 25. Rh1 {[%clk 0:00:59.5]} 25... Kh7 {[%clk 0:02:14.7]} 26. Qh2
{[%clk 0:00:52.9]} 26... g5 {[%clk 0:02:13.1]} 27. Nh5 {[%clk 0:00:29.8]} 27...
Qg6 {[%clk 0:02:11.9]} 28. Rf3 {[%clk 0:00:23.4]} 28... Re6 {[%clk 0:02:08.3]}
29. Ng3 {[%clk 0:00:19.1]} 29... Bg4 {[%clk 0:02:01.7]} 30. Qg2 {[%clk
0:00:12.2]} 30... Bxf3 {[%clk 0:02:01.1]} 31. Qxf3 {[%clk 0:00:13.4]} 31... Rf6
{[%clk 0:01:57.1]} 32. Qg4 {[%clk 0:00:14.4]} 32... Rxf2 {[%clk 0:01:54.4]} 33.
Nh5 {[%clk 0:00:09.3]} 33... Qc2# {[%clk 0:01:54.7]} 0-1

[Event "*** Titled Tuesday Blitz"]
[Site "Chess.com"]
[Date "2019.01.01"]
[Round "1"]
[White "Blitzstream"]
[Black "RandomOracle"]
[Result "1-0"]
[WhiteElo "2551"]
[BlackElo "2168"]
[TimeControl "180+2"]
[EndTime "13:06:52 PST"]
[Termination "Blitzstream won by resignation"]

1. e4 {[%clk 0:03:00.7]} 1... c6 {[%clk 0:03:00.6]} 2. c4 {[%clk 0:02:56.1]}
2... d5 {[%clk 0:03:00.4]} 3. exd5 {[%clk 0:02:56.9]} 3... cxd5 {[%clk
0:03:01.7]} 4. cxd5 {[%clk 0:02:58.5]} 4... Nf6 {[%clk 0:03:02.2]} 5. Nc3 {[%clk
0:02:59.4]} 5... Nxd5 {[%clk 0:03:01.1]} 6. Nf3 {[%clk 0:03:00.2]} 6... g6
{[%clk 0:03:00.2]} 7. d4 {[%clk 0:03:00.8]} 7... Bg7 {[%clk 0:03:00.9]} 8. Bc4
{[%clk 0:03:01.9]} 8... Nb6 {[%clk 0:03:00.5]} 9. Bb3 {[%clk 0:03:02.9]} 9...
O-O {[%clk 0:02:59.3]} 10. O-O {[%clk 0:03:03.4]} 10... Bg4 {[%clk 0:02:56.7]}
11. d5 {[%clk 0:03:04.3]} 11... N8d7 {[%clk 0:02:54.5]} 12. h3 {[%clk
0:03:02.9]} 12... Bxf3 {[%clk 0:02:55.3]} 13. Qxf3 {[%clk 0:03:03.5]} 13... Rc8
{[%clk 0:02:52.3]} 14. Bg5 {[%clk 0:02:57.6]} 14... h6 {[%clk 0:02:51.2]} 15.
Bh4 {[%clk 0:02:57.6]} 15... Ne5 {[%clk 0:02:46.3]} 16. Qe2 {[%clk 0:02:52.8]}
16... Nbc4 {[%clk 0:02:36.6]} 17. Rad1 {[%clk 0:02:51.8]} 17... Re8 {[%clk
0:02:28.9]} 18. Rfe1 {[%clk 0:02:49.2]} 18... g5 {[%clk 0:02:26.2]} 19. Bg3
{[%clk 0:02:49.6]} 19... a6 {[%clk 0:02:18.8]} 20. f4 {[%clk 0:01:45.6]} 20...
gxf4 {[%clk 0:02:16.3]} 21. Bxf4 {[%clk 0:01:47.2]} 21... b5 {[%clk 0:02:15.7]}
22. Qh5 {[%clk 0:01:40.1]} 22... Ng6 {[%clk 0:02:13.6]} 23. Bc1 {[%clk
0:01:35.8]} 23... Qb6+ {[%clk 0:02:06.4]} 24. Kh1 {[%clk 0:01:34.4]} 24... b4
{[%clk 0:01:53.8]} 25. Ne4 {[%clk 0:01:31]} 25... Nxb2 {[%clk 0:01:52.1]} 26.
Bxb2 {[%clk 0:01:30.5]} 26... Bxb2 {[%clk 0:01:51.9]} 27. d6 {[%clk 0:01:31.5]}
1-0

[Event "*** Titled Tuesday Blitz"]
[Site "Chess.com"]
[Date "2019.01.01"]
[Round "1"]
[White "NCchamp"]
[Black "mazetofonias"]
[Result "0-1"]
[WhiteElo "2185"]
[BlackElo "2556"]
[TimeControl "180+2"]
[EndTime "13:06:55 PST"]
[Termination "mazetofonias won by checkmate"]

1. c4 {[%clk 0:03:00.6]} 1... e5 {[%clk 0:02:28.6]} 2. Nc3 {[%clk 0:03:01.2]}
2... Bb4 {[%clk 0:02:28.8]} 3. Nd5 {[%clk 0:03:01.7]} 3... Bc5 {[%clk
0:02:28.7]} 4. Nf3 {[%clk 0:03:02.6]} 4... c6 {[%clk 0:02:30.2]} 5. Nc3 {[%clk
0:03:02.7]} 5... d6 {[%clk 0:02:31.4]} 6. g3 {[%clk 0:03:01.7]} 6... Bb4 {[%clk
0:02:32]} 7. Qc2 {[%clk 0:03:00.7]} 7... f5 {[%clk 0:02:32.2]} 8. Bg2 {[%clk
0:02:59.8]} 8... Nf6 {[%clk 0:02:32.1]} 9. d3 {[%clk 0:02:55.6]} 9... O-O {[%clk
0:02:32.9]} 10. O-O {[%clk 0:02:56.4]} 10... Bxc3 {[%clk 0:02:32.8]} 11. Qxc3
{[%clk 0:02:57]} 11... Nbd7 {[%clk 0:02:33.8]} 12. b4 {[%clk 0:02:53.5]} 12...
a6 {[%clk 0:02:32.9]} 13. a4 {[%clk 0:02:53.3]} 13... Qe7 {[%clk 0:02:32.3]} 14.
Bb2 {[%clk 0:02:51.7]} 14... e4 {[%clk 0:02:32.2]} 15. Ng5 {[%clk 0:02:36.9]}
15... Ne5 {[%clk 0:02:17.2]} 16. Nh3 {[%clk 0:02:00.5]} 16... Bd7 {[%clk
0:02:14.8]} 17. Rfe1 {[%clk 0:01:40.4]} 17... Neg4 {[%clk 0:02:13.9]} 18. b5
{[%clk 0:01:25.4]} 18... axb5 {[%clk 0:02:12.4]} 19. axb5 {[%clk 0:01:25.7]}
19... c5 {[%clk 0:02:10.9]} 20. Rxa8 {[%clk 0:01:18.2]} 20... Rxa8 {[%clk
0:02:12.8]} 21. dxe4 {[%clk 0:01:19.2]} 21... Nxe4 {[%clk 0:02:09.6]} 22. Bxe4
{[%clk 0:01:19.2]} 22... fxe4 {[%clk 0:02:11.5]} 23. Nf4 {[%clk 0:01:20.1]}
23... Rf8 {[%clk 0:02:06.9]} 24. Kg2 {[%clk 0:01:06.6]} 24... Bf5 {[%clk
0:01:46.4]} 25. f3 {[%clk 0:01:02.8]} 25... Ne5 {[%clk 0:01:44.5]} 26. Nd5
{[%clk 0:01:00.1]} 26... Qg5 {[%clk 0:01:08.1]} 27. f4 {[%clk 0:00:57.3]} 27...
Qh5 {[%clk 0:01:07.4]} 28. fxe5 {[%clk 0:00:53.8]} 28... Bh3+ {[%clk 0:01:07.8]}
29. Kg1 {[%clk 0:00:43.7]} 29... Qxe2 {[%clk 0:01:06.2]} 30. Nf4 {[%clk
0:00:31.7]} 30... Rxf4 {[%clk 0:01:05]} 31. Rxe2 {[%clk 0:00:21.5]} 31... Rf1#
{[%clk 0:01:05.5]} 0-1

[Event "*** Titled Tuesday Blitz"]
[Site "Chess.com"]
[Date "2019.01.01"]
[Round "1"]
[White "Siemba"]
[Black "PelinGorki"]
[Result "0-1"]
[WhiteElo "2099"]
[BlackElo "2509"]
[TimeControl "180+2"]
[EndTime "13:06:55 PST"]
[Termination "PelinGorki won by resignation"]

1. e4 {[%clk 0:02:57.7]} 1... c5 {[%clk 0:02:57.6]} 2. Nf3 {[%clk 0:02:55.5]}
2... d6 {[%clk 0:02:58.8]} 3. d4 {[%clk 0:02:55.8]} 3... cxd4 {[%clk 0:03:00.1]}
4. Nxd4 {[%clk 0:02:57.7]} 4... Nf6 {[%clk 0:03:01.1]} 5. Nc3 {[%clk 0:02:52.2]}
5... Bd7 {[%clk 0:03:02.1]} 6. Be3 {[%clk 0:02:51.3]} 6... Ng4 {[%clk 0:03:02]}
7. Bc1 {[%clk 0:02:51.9]} 7... g6 {[%clk 0:02:59.8]} 8. f3 {[%clk 0:02:52.8]}
8... Nf6 {[%clk 0:03:00.5]} 9. Be3 {[%clk 0:02:54.3]} 9... h5 {[%clk 0:02:59.2]}
10. Qd2 {[%clk 0:02:54.4]} 10... a6 {[%clk 0:03:00.1]} 11. O-O-O {[%clk
0:02:54.4]} 11... b5 {[%clk 0:03:01.1]} 12. h4 {[%clk 0:02:50.1]} 12... Nc6
{[%clk 0:03:00.9]} 13. Nxc6 {[%clk 0:02:50.3]} 13... Bxc6 {[%clk 0:03:01.9]} 14.
Ne2 {[%clk 0:02:52.2]} 14... Bg7 {[%clk 0:03:02.1]} 15. Nd4 {[%clk 0:02:53.7]}
15... Bd7 {[%clk 0:03:03]} 16. Be2 {[%clk 0:02:50.6]} 16... Rc8 {[%clk
0:03:02.9]} 17. Kb1 {[%clk 0:02:51.6]} 17... O-O {[%clk 0:03:00.9]} 18. Bd3
{[%clk 0:02:49.8]} 18... Qc7 {[%clk 0:02:59.7]} 19. g4 {[%clk 0:02:50.1]} 19...
e5 {[%clk 0:02:58.8]} 20. Nb3 {[%clk 0:02:16.1]} 20... Be6 {[%clk 0:02:47.7]}
21. g5 {[%clk 0:02:01.9]} 21... Nd7 {[%clk 0:02:47.9]} 22. Be2 {[%clk
0:01:59.6]} 22... Rfd8 {[%clk 0:02:29.1]} 23. c3 {[%clk 0:01:57.4]} 23... Nb6
{[%clk 0:02:28.9]} 24. Bd3 {[%clk 0:01:43.8]} 24... d5 {[%clk 0:02:20]} 25. Qf2
{[%clk 0:01:44.3]} 25... Nc4 {[%clk 0:02:17.7]} 26. Bxc4 {[%clk 0:01:44.3]}
26... Qxc4 {[%clk 0:02:17.5]} 27. Na5 {[%clk 0:01:38.3]} 27... Qa4 {[%clk
0:02:16.9]} 28. Nb7 {[%clk 0:01:35.8]} 28... d4 {[%clk 0:02:16.3]} 29. b3 {[%clk
0:01:14.7]} 29... Bxb3 {[%clk 0:02:16]} 30. axb3 {[%clk 0:01:12.2]} 30... Qxb3+
{[%clk 0:02:17.4]} 31. Qb2 {[%clk 0:01:12.7]} 31... Qc4 {[%clk 0:02:08.4]} 32.
Nxd8 {[%clk 0:00:52.2]} 32... dxe3 {[%clk 0:02:02.4]} 33. Nb7 {[%clk 0:00:49.3]}
33... Qc7 {[%clk 0:02:00.8]} 34. Nd6 {[%clk 0:00:33.1]} 34... Rb8 {[%clk
0:01:59.9]} 35. Rd5 {[%clk 0:00:30.2]} 35... Bf8 {[%clk 0:01:59.8]} 36. Rhd1
{[%clk 0:00:30.9]} 36... Rd8 {[%clk 0:01:56.6]} 37. Nxb5 {[%clk 0:00:21.3]}
37... Rxd5 {[%clk 0:01:56.8]} 38. Nxc7 {[%clk 0:00:22.6]} 38... Rxd1+ {[%clk
0:01:57.1]} 39. Qc1 {[%clk 0:00:18.1]} 39... e2 {[%clk 0:01:56.5]} 0-1

[Event "*** Titled Tuesday Blitz"]
[Site "Chess.com"]
[Date "2019.01.01"]
[Round "1"]
[White "TST2014"]
[Black "j2806"]
[Result "1-0"]
[WhiteElo "2481"]
[BlackElo "1746"]
[TimeControl "180+2"]
[EndTime "13:07:00 PST"]
[Termination "TST2014 won by resignation"]

1. d4 {[%clk 0:03:00.1]} 1... Nf6 {[%clk 0:02:55]} 2. c4 {[%clk 0:03:00.3]} 2...
e6 {[%clk 0:02:53.1]} 3. Nf3 {[%clk 0:03:00.5]} 3... d5 {[%clk 0:02:53]} 4. Nc3
{[%clk 0:03:01]} 4... Be7 {[%clk 0:02:52]} 5. Bf4 {[%clk 0:03:01.5]} 5... c6
{[%clk 0:02:48.9]} 6. e3 {[%clk 0:03:02]} 6... O-O {[%clk 0:02:48.8]} 7. Qc2
{[%clk 0:03:00.7]} 7... b6 {[%clk 0:02:41.5]} 8. Rg1 {[%clk 0:02:59.7]} 8...
dxc4 {[%clk 0:02:34.7]} 9. Bxc4 {[%clk 0:02:59.7]} 9... c5 {[%clk 0:02:35.5]}
10. O-O-O {[%clk 0:02:58.3]} 10... Qe8 {[%clk 0:02:31.7]} 11. g4 {[%clk
0:02:54.8]} 11... Bb7 {[%clk 0:02:28.2]} 12. Ne5 {[%clk 0:02:51.4]} 12... Nc6
{[%clk 0:02:24.6]} 13. g5 {[%clk 0:02:43.7]} 13... Nh5 {[%clk 0:02:07.2]} 14. d5
{[%clk 0:02:41.1]} 14... exd5 {[%clk 0:02:04.5]} 15. Nxd5 {[%clk 0:02:40.3]}
15... Nxf4 {[%clk 0:02:03.4]} 16. exf4 {[%clk 0:02:32.6]} 16... Nxe5 {[%clk
0:02:02.7]} 17. fxe5 {[%clk 0:02:28.6]} 17... Rd8 {[%clk 0:01:56.6]} 18. f4
{[%clk 0:02:26.6]} 18... Bxd5 {[%clk 0:01:20.6]} 19. Bxd5 {[%clk 0:02:27]} 19...
Qb5 {[%clk 0:01:14.6]} 20. Rg3 {[%clk 0:02:18]} 20... Qb4 {[%clk 0:01:10.8]} 21.
Rg4 {[%clk 0:01:57.8]} 21... a5 {[%clk 0:01:00.2]} 22. a3 {[%clk 0:01:58.4]}
22... Qb5 {[%clk 0:00:57.7]} 23. Rh4 {[%clk 0:01:57.7]} 23... g6 {[%clk
0:00:55.9]} 24. Rd3 {[%clk 0:01:36]} 24... Kg7 {[%clk 0:00:47]} 25. Bc4 {[%clk
0:01:34.6]} 25... Qc6 {[%clk 0:00:45.2]} 26. Kb1 {[%clk 0:01:21.5]} 26... Rxd3
{[%clk 0:00:43.6]} 27. Qxd3 {[%clk 0:01:21.5]} 27... Qc8 {[%clk 0:00:32.8]} 28.
e6 {[%clk 0:01:13.9]} 28... fxe6 {[%clk 0:00:31.4]} 29. Qc3+ {[%clk 0:01:11.5]}
29... Kg8 {[%clk 0:00:30.3]} 30. Qh3 {[%clk 0:01:12.3]} 30... Rf7 {[%clk
0:00:19.8]} 31. Bxe6 {[%clk 0:01:11.5]} 31... Qf8 {[%clk 0:00:20.1]} 32. Rxh7
{[%clk 0:01:10.9]} 1-0

[Event "*** Titled Tuesday Blitz"]
[Site "Chess.com"]
[Date "2019.01.01"]
[Round "1"]
[White "Generalas"]
[Black "jacky72"]
[Result "0-1"]
[WhiteElo "2255"]
[BlackElo "2614"]
[TimeControl "180+2"]
[EndTime "13:07:04 PST"]
[Termination "jacky72 won by checkmate"]

1. e4 {[%clk 0:02:59.4]} 1... e5 {[%clk 0:02:55.7]} 2. Nf3 {[%clk 0:02:58.7]}
2... Nc6 {[%clk 0:02:56.8]} 3. Bb5 {[%clk 0:02:58.6]} 3... a6 {[%clk 0:02:57.9]}
4. Ba4 {[%clk 0:02:59.8]} 4... d6 {[%clk 0:02:59]} 5. O-O {[%clk 0:03:00]} 5...
Bd7 {[%clk 0:02:59.8]} 6. c3 {[%clk 0:03:00.2]} 6... g6 {[%clk 0:03:01.1]} 7. d4
{[%clk 0:03:00.3]} 7... Bg7 {[%clk 0:03:02.1]} 8. Bg5 {[%clk 0:03:00.8]} 8... f6
{[%clk 0:03:02.6]} 9. Bh4 {[%clk 0:02:59.3]} 9... Nh6 {[%clk 0:02:48.4]} 10.
Nbd2 {[%clk 0:02:57.7]} 10... O-O {[%clk 0:02:46.6]} 11. Qe2 {[%clk 0:02:37.7]}
11... Qe7 {[%clk 0:02:40]} 12. Rfe1 {[%clk 0:02:26.4]} 12... Rae8 {[%clk
0:02:40.5]} 13. h3 {[%clk 0:02:15.8]} 13... Kh8 {[%clk 0:02:41.8]} 14. Nf1
{[%clk 0:02:10.6]} 14... exd4 {[%clk 0:02:42.1]} 15. cxd4 {[%clk 0:02:00.7]}
15... Nxd4 {[%clk 0:02:43.3]} 16. Nxd4 {[%clk 0:02:01.4]} 16... Bxa4 {[%clk
0:02:44.8]} 17. Qc4 {[%clk 0:01:58.2]} 17... Qd7 {[%clk 0:02:36.3]} 18. b3
{[%clk 0:01:52.6]} 18... Bb5 {[%clk 0:02:36.7]} 19. Nxb5 {[%clk 0:01:48.9]}
19... axb5 {[%clk 0:02:38.6]} 20. Qd5 {[%clk 0:01:47.9]} 20... c6 {[%clk
0:02:37.4]} 21. Qd3 {[%clk 0:01:48.4]} 21... f5 {[%clk 0:02:33.9]} 22. Rad1
{[%clk 0:01:48.2]} 22... fxe4 {[%clk 0:02:34]} 23. Rxe4 {[%clk 0:01:48.8]} 23...
d5 {[%clk 0:02:32.2]} 24. Rxe8 {[%clk 0:01:44.2]} 24... Rxe8 {[%clk 0:02:34.1]}
25. Ne3 {[%clk 0:01:40.8]} 25... Nf5 {[%clk 0:02:29.1]} 26. Nxf5 {[%clk
0:01:40.4]} 26... Qxf5 {[%clk 0:02:31]} 27. Qxf5 {[%clk 0:01:40.5]} 27... gxf5
{[%clk 0:02:32.9]} 28. Kf1 {[%clk 0:01:40.3]} 28... b4 {[%clk 0:02:33.9]} 29.
Bg3 {[%clk 0:01:35.9]} 29... Bc3 {[%clk 0:02:34.5]} 30. Rc1 {[%clk 0:01:25.8]}
30... Kg7 {[%clk 0:02:25.5]} 31. f3 {[%clk 0:01:23.8]} 31... Kf7 {[%clk
0:02:23.1]} 32. Rc2 {[%clk 0:01:21.4]} 32... d4 {[%clk 0:02:14.3]} 33. Re2
{[%clk 0:01:20.5]} 33... Rxe2 {[%clk 0:02:15.6]} 34. Kxe2 {[%clk 0:01:20.9]}
34... Ke6 {[%clk 0:02:17.5]} 35. Kd3 {[%clk 0:01:21.8]} 35... Kd5 {[%clk
0:02:18.9]} 36. Bf2 {[%clk 0:01:15.8]} 36... c5 {[%clk 0:02:19.8]} 37. g4 {[%clk
0:00:54]} 37... fxg4 {[%clk 0:02:20.7]} 38. hxg4 {[%clk 0:00:53.5]} 38... b5
{[%clk 0:02:22.6]} 39. f4 {[%clk 0:00:52.4]} 39... c4+ {[%clk 0:02:23.8]} 40.
Ke2 {[%clk 0:00:48.4]} 40... Ke4 {[%clk 0:02:23.9]} 41. f5 {[%clk 0:00:48]}
41... d3+ {[%clk 0:02:25]} 42. Kd1 {[%clk 0:00:38.7]} 42... Kf3 {[%clk
0:02:08.9]} 43. Be1 {[%clk 0:00:37.2]} 43... Bxe1 {[%clk 0:02:09.8]} 44. Kxe1
{[%clk 0:00:33.3]} 44... c3 {[%clk 0:02:11.2]} 45. f6 {[%clk 0:00:30.9]} 45...
Ke3 {[%clk 0:02:11.9]} 46. Kd1 {[%clk 0:00:27.3]} 46... d2 {[%clk 0:02:12.3]}
47. f7 {[%clk 0:00:26.9]} 47... Kd3 {[%clk 0:02:13.2]} 48. f8=Q {[%clk
0:00:25.3]} 48... c2# {[%clk 0:02:14]} 0-1